bitfinex-derivatives/quotes_SOLF0:USTF0_20250425
["timestamp","ask_amount","ask_price","bid_price","bid_amount"]
[1745609163191,6.6142,151.08,151.01,15.88594053]
[1745609163387,6.6142,151.08,151.05,6.6153]
[1745609163588,15.88594053,151.1,151.01,15.88594053]
[1745609163788,6.6144,151.08,151.01,15.88594053]
[1745609163986,6.6144,151.08,151.06,6.615]
[1745609164288,6.6139,151.09,151.06,6.615]
[1745609164488,15.88594053,151.1,151.07,6.6143]
[1745609164691,27.8992,151.11,151.03,15.88594053]
[1745609165192,27.8992,151.11,151.08,6.614]
[1745609165793,27.8992,151.11,151.07,6.6144]
[1745609166193,27.8992,151.11,151.03,15.88594053]
[1745609166391,6.6141,151.09,151.06,6.6149]
[1745609166591,6.6141,151.09,151.01,15.88594053]
[1745609166893,6.6141,151.09,151.06,6.6148]
[1745609168394,6.6142,151.08,151.06,6.6148]
[1745609169093,6.614,151.09,151.06,6.6148]
[1745609169692,6.6134,151.1,151.03,15.88594053]
[1745609169994,27.8992,151.11,151.03,15.88594053]
[1745609170194,34.5123,151.11,151.08,6.6139]
[1745609170688,34.5123,151.11,151.03,15.88594053]
[1745609170894,32.6198,151.11,151.09,6.6137]
[1745609171095,6.6133,151.1,151.04,1.9977]
[1745609171590,6.6133,151.1,151.06,10.16282457]
[1745609171893,6.6133,151.1,151.07,6.6145]
[1745609172496,6.6138,151.09,151.07,6.6145]
[1745609173395,10.16282457,151.09,151.04,1.9977]
[1745609173696,10.16282457,151.09,151.03,34.14282457]
[1745609173896,16.77682457,151.09,151.06,6.6147]
[1745609174089,10.16282457,151.1,151.05,10.16282457]
[1745609174294,26.0067,151.11,151.07,10.16282457]
[1745609174498,32.6198,151.11,151.09,6.6137]
[1745609174994,26.0067,151.11,151.07,10.16282457]
[1745609175492,6.6135,151.1,151.08,6.614]
[1745609177498,32.6198,151.11,151.08,6.614]
[1745609177702,26.0067,151.11,151.07,10.16282457]
[1745609177896,23.98,151.11,151.09,10.16282457]
[1745609178095,34.12282457,151.14,151.12,6.6123]
[1745609178398,2.0467,151.16,151.13,10.16282457]
[1745609178795,8.6576,151.16,151.13,10.16282457]
[1745609179600,2.0467,151.16,151.13,10.16282457]
[1745609179801,30.5704,151.17,151.13,10.16282457]
[1745609180196,30.5704,151.17,151.14,6.6115]
[1745609180500,23.96,151.17,151.13,10.16282457]
[1745609180802,23.96,151.17,151.15,10.16282457]
[1745609181303,23.96,151.17,151.15,16.77372457]
[1745609183400,30.5704,151.17,151.15,10.16282457]
[1745609183902,23.96,151.17,151.15,10.16282457]
[1745609184204,23.96,151.17,151.15,16.77392457]
[1745609186001,30.5703,151.17,151.15,16.77392457]
[1745609186199,30.5703,151.17,151.15,10.16282457]
[1745609187304,23.96,151.17,151.15,16.77382457]
[1745609188402,30.5704,151.17,151.15,16.77382457]
[1745609188603,23.96,151.17,151.13,10.16282457]
[1745609189006,6.611,151.16,151.14,6.6115]
[1745609189708,30.5705,151.17,151.14,6.6115]
[1745609190208,30.5705,151.17,151.15,6.6111]
[1745609190511,30.5705,151.17,151.13,10.16282457]
[1745609191002,23.96,151.17,151.15,6.6109]
[1745609192308,30.5703,151.17,151.15,6.6109]
[1745609193011,30.5703,151.17,151.14,6.6114]
[1745609193613,6.6108,151.16,151.14,6.6114]
[1745609196009,30.5704,151.17,151.15,6.611]
[1745609197212,6.6107,151.16,151.14,6.6113]
[1745609197815,30.5705,151.17,151.15,16.77382457]
[1745609198413,23.96,151.17,151.15,16.77382457]
[1745609198914,23.96,151.17,151.16,6.6107]
[1745609199214,8.6743,151.19,151.15,10.16282457]
[1745609200012,2.0646,151.19,151.15,10.16282457]
[1745609200512,6.6083,151.22,151.17,10.16282457]
[1745609200704,10.16282457,151.23,151.19,10.16282457]
[1745609201213,6.6084,151.22,151.19,16.77202457]
[1745609201417,10.16282457,151.23,151.19,10.16282457]
[1745609201913,6.6083,151.22,151.19,16.77182457]
[1745609202214,6.6083,151.22,151.2,6.6089]
[1745609202415,16.77072457,151.23,151.2,6.6089]
[1745609202812,6.6079,151.23,151.2,6.6089]
[1745609203015,6.6079,151.23,151.21,6.6085]
[1745609203316,6.6081,151.22,151.19,10.16282457]
[1745609203915,6.6078,151.23,151.2,6.6087]
[1745609204215,23.94,151.24,151.2,6.6087]
[1745609204415,10.16282457,151.23,151.19,10.16282457]
[1745609204614,6.6087,151.21,151.19,10.16282457]
[1745609204913,23.94,151.24,151.19,10.16282457]
[1745609205113,6.6079,151.23,151.19,10.16282457]
[1745609205315,34.10282457,151.24,151.19,10.16282457]
[1745609205815,34.10282457,151.24,151.2,6.6089]
[1745609206115,34.10282457,151.24,151.19,10.16282457]
[1745609206517,6.6079,151.23,151.2,6.6087]
[1745609206716,34.10282457,151.24,151.2,6.6087]
[1745609206918,6.6079,151.23,151.2,6.6087]
[1745609207116,6.6079,151.23,151.21,6.6085]
[1745609207414,34.10282457,151.24,151.21,6.6085]
[1745609207720,23.94,151.24,151.21,6.6085]
[1745609207918,30.5474,151.24,151.22,6.608]
[1745609208118,23.94,151.24,151.19,10.16282457]
[1745609208519,30.5474,151.24,151.21,6.6082]
[1745609209522,6.607,151.25,151.21,10.16282457]
[1745609209820,10.16282457,151.26,151.21,10.16282457]
[1745609210319,6.607,151.25,151.22,6.6077]
[1745609210720,10.16282457,151.26,151.21,10.16282457]
[1745609210920,16.76932457,151.26,151.23,6.6072]
[1745609211122,23.94,151.27,151.23,10.16282457]
[1745609211522,30.5461,151.27,151.24,6.6069]
[1745609211722,23.94,151.27,151.23,10.16282457]
[1745609212418,34.10282457,151.27,151.23,10.16282457]
[1745609212923,6.6065,151.26,151.23,16.77012457]
[1745609213622,6.6065,151.26,151.24,6.6071]
[1745609213922,40.70892457,151.27,151.23,10.16282457]
[1745609214323,40.70892457,151.27,151.24,6.6069]
[1745609214918,6.6064,151.26,151.24,6.6069]
[1745609215115,6.6064,151.26,151.23,16.77022457]
[1745609215719,6.6064,151.26,151.23,10.16282457]
[1745609215921,6.6064,151.26,151.24,6.6072]
[1745609216628,40.70892457,151.27,151.24,6.6072]
[1745609216925,34.10282457,151.27,151.24,6.6072]
[1745609217126,6.6064,151.26,151.24,6.6072]
[1745609217327,23.94,151.27,151.25,6.6067]
[1745609217627,30.5462,151.27,151.25,6.6067]
[1745609218628,6.6063,151.26,151.24,6.607]
[1745609222631,6.6071,151.25,151.23,16.77032457]
[1745609223034,23.94,151.27,151.23,10.16282457]
[1745609223532,6.6066,151.26,151.24,6.6072]
[1745609224336,23.94,151.27,151.26,6.6063]
[1745609224540,23.92,151.31,151.25,10.16282457]
[1745609224736,23.92,151.31,151.27,10.16282457]
[1745609225041,16.76752457,151.3,151.27,6.6056]
[1745609225339,10.16282457,151.3,151.27,6.6056]
[1745609225540,16.76762457,151.3,151.27,6.6056]
[1745609225741,10.16282457,151.3,151.27,6.6056]
[1745609225942,10.16282457,151.3,151.28,6.6054]
[1745609226240,30.5243,151.31,151.27,10.16282457]
[1745609226436,30.5243,151.31,151.28,6.6051]
[1745609226631,6.6049,151.3,151.27,10.16282457]
[1745609227033,23.92,151.31,151.28,6.6052]
[1745609227535,23.92,151.31,151.27,10.16282457]
[1745609227843,6.6047,151.3,151.27,10.16282457]
[1745609228043,10.16282457,151.3,151.26,10.16282457]
[1745609228243,10.16282457,151.3,151.2,23.92]
[1745609228541,16.76952457,151.26,151.23,6.6074]
[1745609228741,16.76952457,151.26,151.21,10.16282457]
[1745609229044,10.16282457,151.26,151.24,6.607]
[1745609229342,10.16282457,151.26,151.21,10.16282457]
[1745609229343,23.92,151.27,151.23,10.16282457]
[1745609229744,23.92,151.27,151.26,6.6063]
[1745609230043,34.08282457,151.3,151.25,10.16282457]
[1745609230443,6.605,151.29,151.26,6.6061]
[1745609230644,6.605,151.29,151.25,10.16282457]
[1745609231238,40.68752457,151.3,151.25,10.16282457]
[1745609231439,30.5247,151.3,151.25,10.16282457]
[1745609231846,30.5247,151.3,151.27,6.6056]
[1745609232041,6.605,151.29,151.27,6.6056]
[1745609232544,23.92,151.3,151.25,10.16282457]
[1745609232748,23.92,151.3,151.2,23.92]
[1745609232749,34.08282457,151.33,151.27,10.16282457]
[1745609232940,34.08282457,151.33,151.29,10.16282457]
[1745609233244,34.08282457,151.33,151.3,6.6042]
[1745609233445,40.68632457,151.33,151.3,6.6042]
[1745609233748,40.68632457,151.33,151.31,6.6041]
[1745609233941,40.68612457,151.33,151.31,6.6041]
[1745609234948,40.68612457,151.33,151.3,6.6044]
[1745609235246,6.6038,151.32,151.29,10.16282457]
[1745609235543,6.6038,151.32,151.29,6.6047]
[1745609235737,34.08282457,151.33,151.25,10.16282457]
[1745609235738,10.16282457,151.31,151.25,10.16282457]
[1745609235941,10.16282457,151.29,151.25,10.16282457]
[1745609236146,16.76812457,151.29,151.26,6.6062]
[1745609236349,23.92,151.33,151.25,10.16282457]
[1745609236543,10.16282457,151.3,151.25,10.16282457]
[1745609236742,10.16282457,151.3,151.26,6.6059]
[1745609237448,10.16282457,151.3,151.25,16.76932457]
[1745609237650,10.16282457,151.28,151.23,10.16282457]
[1745609237947,16.76852457,151.28,151.25,6.6065]
[1745609238147,10.16282457,151.28,151.25,6.6065]
[1745609238340,10.16282457,151.28,151.22,27.8713]
[1745609238544,6.6061,151.27,151.24,6.607]
[1745609238746,6.6061,151.27,151.23,10.16282457]
[1745609239138,6.6061,151.27,151.24,16.76992457]
[1745609239440,6.6063,151.26,151.23,10.16282457]
[1745609239846,10.16282457,151.27,151.24,6.6071]
[1745609240045,6.6064,151.26,151.24,6.6071]
[1745609240647,16.76892457,151.27,151.24,6.6071]
[1745609243048,6.6064,151.26,151.24,6.6071]
[1745609243249,10.16282457,151.27,151.24,6.6071]
[1745609244248,6.6064,151.26,151.24,6.6071]
[1745609244651,10.16282457,151.28,151.24,6.6071]
[1745609247146,10.16282457,151.25,151.2,10.16282457]
[1745609247346,10.16282457,151.25,151.19,23.92]
[1745609247641,10.16282457,151.25,151.2,10.16282457]
[1745609248751,10.16282457,151.25,151.22,6.6078]
[1745609249452,6.6074,151.24,151.22,6.6078]
[1745609249950,1.8851,151.27,151.22,10.16282457]
[1745609250652,8.4913,151.27,151.24,6.607]
[1745609251349,6.6062,151.27,151.22,10.16282457]
[1745609251549,16.76842457,151.28,151.25,6.6067]
[1745609252147,23.92,151.29,151.2,4.1528]
[1745609252148,34.08282457,151.29,151.24,10.16282457]
[1745609252353,23.92,151.29,151.24,10.16282457]
[1745609252952,30.5253,151.29,151.26,6.6061]
[1745609253453,30.5253,151.29,151.24,10.16282457]
[1745609254057,30.5253,151.29,151.26,6.6061]
[1745609254355,10.16282457,151.28,151.23,23.92]
[1745609254652,10.16282457,151.28,151.24,6.6068]
[1745609255152,6.6061,151.27,151.24,6.6068]
[1745609256053,16.76842457,151.28,151.25,6.6067]
[1745609256749,6.6059,151.27,151.25,6.6067]
[1745609257054,23.92,151.29,151.24,10.16282457]
[1745609257353,30.5251,151.29,151.26,10.16282457]
[1745609257654,23.92,151.29,151.27,6.6056]
[1745609258856,30.5252,151.29,151.27,6.6056]
[1745609259354,14.24252457,151.33,151.28,10.16282457]
[1745609259557,23.92,151.32,151.28,10.16282457]
[1745609260253,23.92,151.32,151.3,6.6043]
[1745609260758,30.5239,151.32,151.3,6.6043]
[1745609261159,30.5239,151.32,151.29,6.6048]
[1745609261359,6.6042,151.31,151.29,6.6048]
[1745609261749,23.92,151.32,151.29,6.6048]
[1745609262058,30.5241,151.32,151.29,6.6048]
[1745609262950,6.6044,151.31,151.29,6.6048]
[1745609263154,34.08282457,151.32,151.27,10.16282457]
[1745609263561,6.6049,151.3,151.27,16.76832457]
[1745609263758,6.6049,151.3,151.27,10.16282457]
[1745609264059,6.6049,151.3,151.28,6.6051]
[1745609266360,6.6043,151.31,151.29,6.6047]
[1745609267756,6.6066,151.26,151.23,6.6074]
[1745609268059,10.16282457,151.25,151.23,6.6074]
[1745609268262,10.16282457,151.25,151.2,10.16282457]
[1745609268462,16.76962457,151.25,151.21,6.6083]
[1745609268663,16.76962457,151.25,151.2,10.16282457]
[1745609268867,34.08282457,151.27,151.22,10.16282457]
[1745609269062,6.6065,151.26,151.23,6.6074]
[1745609269366,34.08282457,151.27,151.22,10.16282457]
[1745609269561,30.5262,151.27,151.24,16.76982457]
[1745609270361,23.92,151.27,151.24,10.16282457]
[1745609270660,34.08282457,151.27,151.22,10.16282457]
[1745609270867,6.6071,151.25,151.22,10.16282457]
[1745609271164,6.6071,151.25,151.22,16.77062457]
[1745609271665,6.6071,151.25,151.23,6.6076]
[1745609272267,6.6071,151.25,151.22,16.77072457]
[1745609272468,6.6073,151.24,151.22,16.77072457]
[1745609272669,34.08282457,151.27,151.23,6.6076]
[1745609272967,6.6073,151.24,151.22,10.16282457]
[1745609274265,6.6073,151.24,151.22,16.77082457]
[1745609276069,6.6073,151.24,151.22,10.16282457]
[1745609280268,10.16282457,151.25,151.2,10.16282457]
[1745609280469,10.16282457,151.22,151.17,10.16282457]
[1745609280765,6.6087,151.21,151.19,6.6093]
[1745609280967,6.6087,151.21,151.19,16.77212457]
[1745609281473,6.6083,151.22,151.19,16.77212457]
[1745609281772,23.92,151.23,151.2,6.6087]
[1745609281971,23.92,151.23,151.19,10.16282457]
[1745609282174,30.528,151.23,151.21,10.16282457]
[1745609282773,30.528,151.23,151.21,16.77112457]
[1745609283371,6.6068,151.25,151.21,10.16282457]
[1745609283776,23.92,151.26,151.23,10.16282457]
[1745609283975,23.92,151.26,151.25,6.6068]
[1745609284277,34.08282457,151.29,151.25,6.6068]
[1745609284575,40.68812457,151.29,151.26,6.6061]
[1745609285073,34.08282457,151.29,151.26,6.6061]
[1745609285273,6.6057,151.28,151.25,10.16282457]
[1745609285574,34.08282457,151.29,151.22,23.92]
[1745609285575,23.92,151.29,151.27,10.16282457]
[1745609285875,23.92,151.29,151.27,16.76852457]
[1745609286175,30.5254,151.29,151.26,6.6061]
[1745609286473,23.92,151.29,151.26,6.6061]
[1745609287076,6.6057,151.28,151.25,16.76942457]
[1745609287277,6.6057,151.28,151.25,10.16282457]
[1745609287575,6.6057,151.28,151.26,6.6061]
[1745609288475,6.6059,151.27,151.25,6.6067]
[1745609289271,6.6063,151.26,151.24,16.76982457]
[1745609289472,10.16282457,151.28,151.24,10.16282457]
[1745609289874,6.6066,151.26,151.24,10.16282457]
[1745609290581,6.6066,151.26,151.24,16.76992457]
[1745609290778,6.6061,151.27,151.24,10.16282457]
[1745609291478,36.12322457,151.3,151.24,10.16282457]
[1745609291772,10.16282457,151.28,151.24,10.16282457]
[1745609292273,10.16282457,151.28,151.24,16.76982457]
[1745609292479,6.6062,151.27,151.24,10.16282457]
[1745609292777,36.12322457,151.3,151.24,10.16282457]
[1745609292978,36.12322457,151.3,151.26,6.6061]
[1745609293178,6.6054,151.29,151.26,6.6061]
[1745609293582,36.12322457,151.3,151.26,6.6061]
[1745609293779,6.6051,151.29,151.26,6.6061]
[1745609294079,6.6051,151.29,151.26,16.76892457]
[1745609294780,6.6055,151.28,151.26,16.76892457]
[1745609295380,6.6059,151.27,151.24,10.16282457]
[1745609296183,10.16282457,151.28,151.25,6.6065]
[1745609296583,6.6059,151.27,151.25,6.6065]
[1745609296778,25.9604,151.3,151.26,6.6062]
[1745609296978,36.12322457,151.3,151.26,6.6062]
[1745609297178,6.6054,151.29,151.26,6.6062]
[1745609297379,36.12322457,151.3,151.26,6.6062]
[1745609297783,36.12322457,151.3,151.25,6.6066]
[1745609298076,36.12322457,151.3,151.24,10.16282457]
[1745609298284,10.16282457,151.28,151.24,10.16282457]
[1745609298479,6.6063,151.27,151.24,16.76982457]
[1745609298677,10.16282457,151.28,151.24,16.76982457]
[1745609299983,6.6062,151.27,151.25,6.6068]
[1745609300182,6.6062,151.27,151.24,10.16282457]
[1745609300782,16.76852457,151.28,151.24,10.16282457]
[1745609300982,10.16282457,151.28,151.24,10.16282457]
[1745609301783,6.6061,151.27,151.25,6.6065]
[1745609303982,16.76842457,151.28,151.26,6.6063]
[1745609304181,16.76842457,151.28,151.24,10.16282457]
[1745609304377,10.16282457,151.28,151.24,10.16282457]
[1745609305575,6.606,151.27,151.24,16.76982457]
[1745609305779,10.16282457,151.28,151.24,16.76982457]
[1745609305985,6.6065,151.26,151.24,16.76982457]
[1745609306283,6.6065,151.26,151.2,1.9932]
[1745609306284,10.16282457,151.26,151.22,10.16282457]
[1745609307182,6.6068,151.25,151.22,10.16282457]
[1745609307687,6.6065,151.26,151.24,6.6072]
[1745609308389,6.6065,151.26,151.23,6.6075]
[1745609308687,34.08282457,151.26,151.2,10.16282457]
[1745609308876,10.16282457,151.24,151.2,10.16282457]
[1745609309076,6.6077,151.23,151.21,6.6083]
[1745609309486,6.6077,151.23,151.2,16.77162457]
[1745609310086,6.6077,151.23,151.21,6.6084]
[1745609312083,6.6073,151.24,151.22,6.608]
[1745609312387,34.08282457,151.29,151.22,10.16282457]
[1745609312588,23.92,151.29,151.25,10.16282457]
[1745609312784,6.6055,151.28,151.25,16.76912457]
[1745609312986,23.92,151.29,151.25,16.76912457]
[1745609313285,6.6061,151.27,151.25,16.76912457]
[1745609314282,6.6063,151.26,151.23,10.16282457]
[1745609314584,10.16282457,151.28,151.23,10.16282457]
[1745609315190,6.6072,151.25,151.23,10.16282457]
[1745609315887,6.6072,151.25,151.23,16.77022457]
[1745609316190,6.6065,151.26,151.23,16.77022457]
[1745609316491,10.16282457,151.28,151.23,16.77022457]
[1745609316788,6.6068,151.26,151.23,16.77022457]
[1745609316981,10.16282457,151.28,151.23,16.77022457]
[1745609317391,6.607,151.25,151.23,16.77022457]
[1745609318191,6.607,151.25,151.23,10.16282457]
[1745609318393,6.6072,151.24,151.23,10.16282457]
[1745609318687,10.16282457,151.26,151.21,16.77112457]
[1745609318991,10.16282457,151.24,151.19,36.14542457]
[1745609319387,10.16282457,151.26,151.21,10.16282457]
[1745609319892,10.16282457,151.26,151.21,16.77112457]
[1745609320090,6.6078,151.23,151.21,16.77112457]
[1745609321695,6.6075,151.24,151.21,16.77112457]
[1745609321894,23.92,151.25,151.21,16.77112457]
[1745609322094,23.92,151.25,151.21,10.16282457]
[1745609322396,10.16282457,151.22,151.13,23.92]
[1745609322595,10.16282457,151.19,151.17,6.6101]
[1745609322795,10.16282457,151.19,151.14,10.16282457]
[1745609323194,10.16282457,151.19,151.17,6.61]
[1745609323595,16.77242457,151.19,151.17,6.61]
[1745609323798,27.7904,151.24,151.18,10.16282457]
[1745609323996,6.6088,151.21,151.18,10.16282457]
[1745609324195,10.16282457,151.23,151.18,10.16282457]
[1745609324494,10.16282457,151.23,151.18,16.77242457]
[1745609325099,10.16282457,151.23,151.18,10.16282457]
[1745609325308,6.6084,151.22,151.18,10.16282457]
[1745609325504,10.16282457,151.23,151.18,10.16282457]
[1745609325998,6.6088,151.21,151.18,10.16282457]
[1745609326308,6.6088,151.21,151.18,16.77242457]
[1745609327806,6.609,151.2,151.18,10.16282457]
[1745609328109,10.16282457,151.21,151.18,10.16282457]
[1745609328407,16.77172457,151.21,151.18,16.77262457]
[1745609328608,10.16282457,151.21,151.18,16.77262457]
[1745609329314,10.16282457,151.21,151.19,6.6094]
[1745609330310,16.77142457,151.21,151.19,6.6094]
[1745609330511,16.77142457,151.21,151.18,6.6096]
[1745609331011,16.77142457,151.21,151.16,10.16282457]
[1745609331310,10.16282457,151.21,151.19,6.6093]
[1745609331609,10.16282457,151.23,151.18,10.16282457]
[1745609331804,23.92,151.24,151.2,10.16282457]
[1745609332401,23.92,151.24,151.23,6.6076]
[1745609332606,10.16282457,151.25,151.23,6.6076]
[1745609333812,10.16282457,151.25,151.2,10.16282457]
[1745609334112,10.16282457,151.24,151.2,10.16282457]
[1745609334310,16.77022457,151.24,151.21,6.6081]
[1745609334610,16.77022457,151.24,151.2,10.16282457]
[1745609334805,6.6074,151.24,151.2,10.16282457]
[1745609335010,6.6074,151.24,151.22,6.6079]
[1745609335612,6.6074,151.24,151.21,6.6084]
[1745609335814,6.6074,151.24,151.2,10.16282457]
[1745609336014,16.76982457,151.25,151.2,10.16282457]
[1745609336214,16.76982457,151.25,151.22,6.6077]
[1745609337512,16.77042457,151.23,151.21,6.6083]
[1745609337814,34.08282457,151.23,151.17,34.08282457]
[1745609338612,6.6084,151.22,151.19,6.6092]
[1745609339012,34.08282457,151.23,151.17,10.16282457]
[1745609339214,16.77152457,151.21,151.18,6.6095]
[1745609339714,16.77152457,151.21,151.19,6.6093]
[1745609342609,10.16282457,151.21,151.19,6.6093]
[1745609345019,10.16282457,151.21,151.2,6.6089]
[1745609345213,40.69062457,151.23,151.19,10.16282457]
[1745609345714,40.69062457,151.23,151.21,6.6083]
[1745609346216,6.6082,151.22,151.19,16.77182457]
[1745609346417,6.6082,151.22,151.19,10.16282457]
[1745609347014,6.6082,151.22,151.2,6.6087]
[1745609347218,40.69062457,151.23,151.2,6.6087]
[1745609347421,34.08282457,151.23,151.2,6.6087]
[1745609347718,6.6083,151.22,151.2,6.6087]
[1745609348419,40.69072457,151.23,151.2,6.6087]
[1745609348615,40.69072457,151.23,151.21,6.6084]
[1745609348817,23.92,151.23,151.19,10.16282457]
[1745609349016,10.16282457,151.25,151.21,10.16282457]
[1745609349216,23.92,151.26,151.24,6.6072]
[1745609349418,30.5266,151.26,151.24,6.6072]
[1745609349921,23.92,151.26,151.25,6.6068]
[1745609350717,23.92,151.26,151.24,6.607]
[1745609351418,30.5265,151.26,151.23,16.77022457]
[1745609351621,23.92,151.26,151.22,10.16282457]
[1745609352223,6.6074,151.24,151.22,16.77062457]
[1745609352720,23.92,151.26,151.22,16.77062457]
[1745609353022,6.6073,151.24,151.22,16.77062457]
[1745609353821,6.6073,151.24,151.22,10.16282457]
[1745609354022,6.6076,151.23,151.22,10.16282457]
[1745609354223,10.16282457,151.25,151.22,10.16282457]
[1745609354922,6.6074,151.24,151.22,10.16282457]
[1745609355221,6.6074,151.24,151.22,16.77072457]
[1745609355822,6.6074,151.24,151.22,10.16282457]
[1745609357521,6.6074,151.24,151.21,16.77112457]
[1745609357723,10.16282457,151.25,151.21,10.16282457]
[1745609358224,10.16282457,151.25,151.21,16.77112457]
[1745609358225,6.6076,151.24,151.21,16.77112457]
[1745609359124,6.6076,151.24,151.22,6.6079]
[1745609360222,10.16282457,151.25,151.23,6.6076]
[1745609360423,23.92,151.26,151.21,10.16282457]
[1745609360623,30.5264,151.26,151.21,10.16282457]
[1745609360824,30.5264,151.26,151.23,6.6073]
[1745609361326,23.92,151.26,151.23,6.6073]
[1745609361527,10.16282457,151.25,151.22,6.6079]
[1745609362226,6.6073,151.24,151.22,6.6079]
[1745609363626,23.92,151.29,151.23,10.16282457]
[1745609363826,23.92,151.29,151.25,10.16282457]
[1745609364325,6.6055,151.28,151.25,10.16282457]
[1745609364727,30.5252,151.29,151.26,6.6063]
[1745609365729,6.6059,151.27,151.25,16.76942457]
[1745609366228,34.08282457,151.29,151.25,16.76942457]
[1745609366529,6.6057,151.28,151.25,16.76942457]
[1745609367723,6.6057,151.28,151.25,10.16282457]
[1745609368028,6.6057,151.28,151.26,6.6063]
[1745609368530,6.6057,151.28,151.25,16.76932457]
[1745609368728,6.606,151.27,151.25,16.76932457]
[1745609368919,6.606,151.27,151.24,6.6071]
[1745609369318,6.606,151.27,151.25,6.6067]
[1745609371129,6.6056,151.28,151.25,6.6067]
[1745609371729,6.6059,151.27,151.25,6.6067]
[1745609371930,6.6059,151.27,151.24,6.607]
[1745609372131,10.16282457,151.27,151.22,10.16282457]
[1745609372329,6.6071,151.25,151.22,16.77062457]
[1745609372734,6.6065,151.26,151.22,16.77062457]
[1745609373533,6.6065,151.26,151.22,10.16282457]
[1745609373832,6.6065,151.26,151.23,6.6074]
[1745609374134,6.6068,151.25,151.23,6.6074]
[1745609375233,6.6068,151.25,151.22,10.16282457]
[1745609375729,6.6068,151.25,151.23,6.6073]
[1745609375928,6.6065,151.26,151.22,10.16282457]
[1745609376235,34.08282457,151.29,151.25,6.6064]
[1745609376435,6.606,151.27,151.25,6.6064]
[1745609376734,6.606,151.27,151.24,10.16282457]
[1745609377233,6.606,151.27,151.24,16.76982457]
[1745609377530,6.606,151.27,151.24,6.607]
[1745609377836,6.6063,151.26,151.24,6.607]
[1745609378136,6.6059,151.28,151.23,10.16282457]
[1745609378334,34.08282457,151.29,151.23,10.16282457]
[1745609378837,6.6063,151.26,151.23,10.16282457]
[1745609379434,6.6061,151.27,151.24,6.6071]
[1745609381334,34.08282457,151.29,151.23,16.77022457]
[1745609381734,10.16282457,151.27,151.23,10.16282457]
[1745609381934,23.92,151.29,151.23,10.16282457]
[1745609382133,6.607,151.25,151.23,10.16282457]
[1745609382534,6.607,151.25,151.23,16.77042457]
[1745609384331,6.6065,151.26,151.23,10.16282457]
[1745609385038,10.16282457,151.24,151.19,10.16282457]
[1745609385442,6.6079,151.23,151.2,6.6085]
[1745609385642,6.6079,151.23,151.19,10.16282457]
[1745609386342,6.6079,151.23,151.21,6.6085]
[1745609386744,16.77022457,151.24,151.21,6.6085]
[1745609387041,16.77022457,151.24,151.21,16.77132457]
[1745609387242,23.92,151.25,151.22,6.608]
[1745609387541,30.5269,151.25,151.22,6.608]
[1745609388142,30.5269,151.25,151.23,6.6075]
[1745609390442,23.92,151.25,151.23,6.6075]
[1745609391345,30.5268,151.25,151.23,6.6075]
[1745609392239,30.5268,151.25,151.22,6.6079]
[1745609392543,10.16282457,151.24,151.22,6.6079]
[1745609393745,16.77002457,151.24,151.22,6.6079]
[1745609394145,10.16282457,151.24,151.22,6.6079]
[1745609394345,23.92,151.25,151.19,10.16282457]
[1745609394346,34.08282457,151.25,151.23,6.6076]
[1745609394647,40.68982457,151.25,151.23,6.6076]
[1745609396046,34.08282457,151.25,151.23,6.6076]
[1745609396346,23.92,151.25,151.24,6.6072]
[1745609396547,16.76912457,151.27,151.24,6.6072]
[1745609396746,10.16282457,151.27,151.24,6.6072]
[1745609397247,6.6066,151.26,151.24,6.6072]
[1745609398650,6.6066,151.26,151.23,16.77022457]
[1745609399049,10.16282457,151.27,151.23,10.16282457]
[1745609399253,10.16282457,151.27,151.22,6.6078]
[1745609399549,10.16282457,151.27,151.21,10.16282457]
[1745609399850,6.6069,151.25,151.23,6.6074]
[1745609400244,10.16282457,151.27,151.21,10.16282457]
[1745609400549,6.6075,151.24,151.22,6.608]
[1745609400848,10.16282457,151.25,151.2,10.16282457]
[1745609401051,16.76982457,151.25,151.23,6.6076]
[1745609401250,10.16282457,151.25,151.2,10.16282457]